[Event "*** Titled Tuesday Blitz"]
[Site "Chess.com"]
[Date "2020.05.05"]
[Round "3"]
[White "ChronicUnhappiness"]
[Black "crywolf1986"]
[Result "0-1"]
[WhiteElo "2305"]
[BlackElo "2491"]
[TimeControl "180+1"]
[EndTime "10:29:11 PDT"]
[Termination "crywolf1986 won by resignation"]

1. c4 {[%clk 0:03:00.9]} 1... e6 {[%clk 0:02:59.2]} 2. Nf3 {[%clk 0:02:58.9]}
2... d5 {[%clk 0:02:58.8]} 3. g3 {[%clk 0:02:59]} 3... Nf6 {[%clk 0:02:58.2]} 4.
Bg2 {[%clk 0:02:59.3]} 4... Be7 {[%clk 0:02:57.3]} 5. O-O {[%clk 0:02:59.3]}
5... O-O {[%clk 0:02:57.6]} 6. d4 {[%clk 0:02:59.4]} 6... c6 {[%clk 0:02:56.5]}
7. Qc2 {[%clk 0:02:58.4]} 7... b6 {[%clk 0:02:56.6]} 8. Nbd2 {[%clk 0:02:52.8]}
8... Ba6 {[%clk 0:02:56.2]} 9. Rd1 {[%clk 0:02:52]} 9... Nbd7 {[%clk 0:02:55.8]}
10. b3 {[%clk 0:02:46.7]} 10... Rc8 {[%clk 0:02:54.9]} 11. e4 {[%clk 0:02:45.6]}
11... c5 {[%clk 0:02:53.8]} 12. exd5 {[%clk 0:02:13.7]} 12... exd5 {[%clk
0:02:51.4]} 13. Bb2 {[%clk 0:02:13.7]} 13... dxc4 {[%clk 0:02:27.4]} 14. bxc4
{[%clk 0:02:12.3]} 14... Bb7 {[%clk 0:02:23.2]} 15. d5 {[%clk 0:02:09.3]} 15...
Re8 {[%clk 0:02:17.3]} 16. Nf1 {[%clk 0:01:49.9]} 16... Bf8 {[%clk 0:02:10.3]}
17. Ne3 {[%clk 0:01:48.1]} 17... g6 {[%clk 0:02:09.9]} 18. h4 {[%clk 0:01:35.2]}
18... Bg7 {[%clk 0:02:08.6]} 19. Bh3 {[%clk 0:01:12.4]} 19... Ra8 {[%clk
0:02:05.6]} 20. Re1 {[%clk 0:01:07.6]} 20... Bc8 {[%clk 0:01:57.4]} 21. Re2
{[%clk 0:01:05.6]} 21... Ne5 {[%clk 0:01:44.3]} 22. Bxc8 {[%clk 0:01:06.5]}
22... Nxf3+ {[%clk 0:01:43.2]} 23. Kg2 {[%clk 0:01:05.9]} 23... Nd4 {[%clk
0:01:38.8]} 24. Bxd4 {[%clk 0:00:57.6]} 24... cxd4 {[%clk 0:01:39.7]} 25. Bb7
{[%clk 0:00:49.9]} 25... dxe3 {[%clk 0:01:33.3]} 26. Bxa8 {[%clk 0:00:48.2]}
26... Qxa8 {[%clk 0:01:34.2]} 27. Rae1 {[%clk 0:00:40.9]} 27... exf2 {[%clk
0:01:19.4]} 28. Rxe8+ {[%clk 0:00:39.5]} 28... Nxe8 {[%clk 0:01:20.3]} 29. Qxf2
{[%clk 0:00:39.8]} 29... Qd8 {[%clk 0:01:12.9]} 30. Qe3 {[%clk 0:00:38.1]} 30...
Nd6 {[%clk 0:01:10.7]} 31. Qe7 {[%clk 0:00:36.8]} 31... Qxe7 {[%clk 0:01:10.3]}
32. Rxe7 {[%clk 0:00:37.7]} 32... Nxc4 {[%clk 0:01:08.7]} 33. Kf3 {[%clk
0:00:21.1]} 33... Bf8 {[%clk 0:01:07.3]} 34. Rxa7 {[%clk 0:00:19.7]} 34... Bc5
{[%clk 0:01:06.5]} 35. a4 {[%clk 0:00:16.3]} 35... Nd6 {[%clk 0:01:06]} 36. Kf4
{[%clk 0:00:15.7]} 36... Kf8 {[%clk 0:01:03.4]} 37. g4 {[%clk 0:00:15.8]} 37...
h6 {[%clk 0:01:02.1]} 38. h5 {[%clk 0:00:15.7]} 38... g5+ {[%clk 0:01:01.7]} 39.
Ke5 {[%clk 0:00:15.7]} 39... Kg7 {[%clk 0:01:01.9]} 40. Rd7 {[%clk 0:00:12.7]}
40... Nc4+ {[%clk 0:01:02.1]} 41. Kf5 {[%clk 0:00:12.3]} 41... Ne3+ {[%clk
0:01:00.8]} 42. Ke4 {[%clk 0:00:12.6]} 42... Nxg4 {[%clk 0:01:00.8]} 43. d6
{[%clk 0:00:12.5]} 43... Nf6+ {[%clk 0:01:00.8]} 0-1

[Event "*** Titled Tuesday Blitz"]
[Site "Chess.com"]
[Date "2020.05.05"]
[Round "3"]
[White "QueenOfTactics90"]
[Black "korkmaz16"]
[Result "0-1"]
[WhiteElo "1997"]
[BlackElo "2291"]
[TimeControl "180+1"]
[EndTime "10:29:11 PDT"]
[Termination "korkmaz16 won by resignation"]

1. e4 {[%clk 0:03:00.9]} 1... d5 {[%clk 0:02:55.1]} 2. exd5 {[%clk 0:03:00.3]}
2... Nf6 {[%clk 0:02:54]} 3. Bb5+ {[%clk 0:02:55.7]} 3... Bd7 {[%clk 0:02:51.4]}
4. Bc4 {[%clk 0:02:54.6]} 4... Bg4 {[%clk 0:02:48.3]} 5. f3 {[%clk 0:02:55]}
5... Bf5 {[%clk 0:02:44.2]} 6. Nc3 {[%clk 0:02:53.6]} 6... Nbd7 {[%clk
0:02:40.7]} 7. g4 {[%clk 0:02:51.1]} 7... Bg6 {[%clk 0:02:35.4]} 8. g5 {[%clk
0:02:50.9]} 8... Nb6 {[%clk 0:02:32.1]} 9. Bb5+ {[%clk 0:02:48.9]} 9... Nfd7
{[%clk 0:02:30.6]} 10. d4 {[%clk 0:02:41]} 10... e6 {[%clk 0:02:19.9]} 11. dxe6
{[%clk 0:02:39]} 11... fxe6 {[%clk 0:02:19.2]} 12. Qe2 {[%clk 0:02:36.9]} 12...
Bd6 {[%clk 0:01:41.7]} 13. Qxe6+ {[%clk 0:02:34.3]} 13... Be7 {[%clk 0:01:37.2]}
14. f4 {[%clk 0:02:27.9]} 14... Bf7 {[%clk 0:01:36]} 15. Qe2 {[%clk 0:02:23.9]}
15... O-O {[%clk 0:01:34.7]} 16. Be3 {[%clk 0:02:21.9]} 16... Nd5 {[%clk
0:01:32.1]} 17. Nxd5 {[%clk 0:02:18.2]} 17... Bxd5 {[%clk 0:01:31]} 18. Bc4
{[%clk 0:02:17.3]} 18... Nb6 {[%clk 0:01:28.9]} 19. Bxd5+ {[%clk 0:02:17]} 19...
Qxd5 {[%clk 0:01:17.5]} 20. Nf3 {[%clk 0:02:14.1]} 20... Rae8 {[%clk 0:01:08.9]}
21. O-O {[%clk 0:02:13.1]} 21... Nc4 {[%clk 0:01:02.2]} 22. Ne5 {[%clk
0:02:02.7]} 22... Nxe3 {[%clk 0:00:54.2]} 23. Qxe3 {[%clk 0:02:03.6]} 23... c5
{[%clk 0:00:54.4]} 24. c3 {[%clk 0:01:48.3]} 24... cxd4 {[%clk 0:00:53.1]} 25.
cxd4 {[%clk 0:01:48.7]} 25... Bd6 {[%clk 0:00:49.5]} 26. Qb3 {[%clk 0:01:36.1]}
26... Qxb3 {[%clk 0:00:45.6]} 27. axb3 {[%clk 0:01:37]} 27... a6 {[%clk
0:00:46.5]} 28. Rac1 {[%clk 0:01:31.9]} 28... Rd8 {[%clk 0:00:46.3]} 29. Rc4
{[%clk 0:01:16.9]} 29... Bb8 {[%clk 0:00:45.4]} 30. Kg2 {[%clk 0:01:12.5]} 30...
b5 {[%clk 0:00:44.7]} 31. Rc6 {[%clk 0:01:05.2]} 31... Rxd4 {[%clk 0:00:44.7]}
32. Rxa6 {[%clk 0:01:03.5]} 32... Rd2+ {[%clk 0:00:44.6]} 33. Kg3 {[%clk
0:01:01]} 33... Bxe5 {[%clk 0:00:43.1]} 34. Rb6 {[%clk 0:00:50.1]} 34... Rd3+
{[%clk 0:00:33.7]} 35. Kg4 {[%clk 0:00:48.8]} 35... Rxb3 {[%clk 0:00:31.6]} 36.
Re6 {[%clk 0:00:41.9]} 36... Bxb2 {[%clk 0:00:28.9]} 37. Rb1 {[%clk 0:00:38.4]}
37... Rb4 {[%clk 0:00:28.9]} 38. Re2 {[%clk 0:00:31.5]} 38... Rbxf4+ {[%clk
0:00:27.1]} 39. Kh5 {[%clk 0:00:30.1]} 39... g6+ {[%clk 0:00:26.3]} 0-1

[Event "*** Titled Tuesday Blitz"]
[Site "Chess.com"]
[Date "2020.05.05"]
[Round "3"]
[White "mamonika"]
[Black "Olga_Zhuravleva"]
[Result "1-0"]
[WhiteElo "1979"]
[BlackElo "2260"]
[TimeControl "180+1"]
[EndTime "10:29:11 PDT"]
[Termination "mamonika won on time"]

1. e4 {[%clk 0:03:00.9]} 1... e5 {[%clk 0:02:59.4]} 2. Nf3 {[%clk 0:03:00.7]}
2... Nc6 {[%clk 0:02:59.7]} 3. Bc4 {[%clk 0:03:00.4]} 3... Nf6 {[%clk
0:02:58.9]} 4. d3 {[%clk 0:02:52.1]} 4... d5 {[%clk 0:02:58.8]} 5. exd5 {[%clk
0:02:50.5]} 5... Nxd5 {[%clk 0:02:59.7]} 6. O-O {[%clk 0:02:40.1]} 6... Bc5
{[%clk 0:02:57.6]} 7. h3 {[%clk 0:01:53.5]} 7... O-O {[%clk 0:02:55.2]} 8. Re1
{[%clk 0:01:53.2]} 8... Nb6 {[%clk 0:02:50.2]} 9. Bb3 {[%clk 0:01:51.5]} 9... h6
{[%clk 0:02:39.4]} 10. Nbd2 {[%clk 0:01:42.7]} 10... Bd6 {[%clk 0:02:24.3]} 11.
Ne4 {[%clk 0:01:40.8]} 11... Kh8 {[%clk 0:02:20.7]} 12. Nfg5 {[%clk 0:01:26.7]}
12... Qe7 {[%clk 0:01:55.8]} 13. Qh5 {[%clk 0:01:21.5]} 13... Be6 {[%clk
0:01:45.8]} 14. Bxe6 {[%clk 0:01:03.8]} 14... fxe6 {[%clk 0:01:39.2]} 15. Qg6
{[%clk 0:01:03.6]} 15... hxg5 {[%clk 0:01:26.4]} 16. Nxg5 {[%clk 0:01:03.1]}
16... Qxg5 {[%clk 0:01:24.9]} 17. Bxg5 {[%clk 0:01:02.6]} 17... Rf5 {[%clk
0:01:16.5]} 18. Re4 {[%clk 0:00:55.5]} 18... Nd4 {[%clk 0:00:31.4]} 19. Rh4+
{[%clk 0:00:53.4]} 19... Kg8 {[%clk 0:00:29.9]} 20. c3 {[%clk 0:00:43.6]} 20...
Ne2+ {[%clk 0:00:18.8]} 21. Kh1 {[%clk 0:00:43.3]} 21... Nf4 {[%clk 0:00:18.1]}
22. Bxf4 {[%clk 0:00:42.9]} 22... Rxf4 {[%clk 0:00:15.5]} 23. Qxe6+ {[%clk
0:00:42]} 23... Rf7 {[%clk 0:00:12.9]} 24. Re1 {[%clk 0:00:34.1]} 24... Rd8
{[%clk 0:00:10.6]} 25. Ree4 {[%clk 0:00:33]} 25... Nc8 {[%clk 0:00:10]} 26. Rh8+
{[%clk 0:00:30.6]} 26... Kxh8 {[%clk 0:00:08.7]} 27. Qxf7 {[%clk 0:00:30.2]}
27... Be7 {[%clk 0:00:08.6]} 28. Rxe5 {[%clk 0:00:29.6]} 1-0

[Event "*** Titled Tuesday Blitz"]
[Site "Chess.com"]
[Date "2020.05.05"]
[Round "3"]
[White "SoltaniciR"]
[Black "VinzentSpitzl"]
[Result "1-0"]
[WhiteElo "2604"]
[BlackElo "2390"]
[TimeControl "180+1"]
[EndTime "10:29:12 PDT"]
[Termination "SoltaniciR won on time"]

1. e4 {[%clk 0:03:00.9]} 1... c6 {[%clk 0:03:00]} 2. c4 {[%clk 0:03:00.3]} 2...
d5 {[%clk 0:03:00.3]} 3. exd5 {[%clk 0:03:01.2]} 3... cxd5 {[%clk 0:03:01.2]} 4.
cxd5 {[%clk 0:03:01.8]} 4... Nf6 {[%clk 0:03:01.8]} 5. Qa4+ {[%clk 0:03:02]}
5... Bd7 {[%clk 0:02:59.5]} 6. Qb3 {[%clk 0:03:00.6]} 6... Qb6 {[%clk
0:02:48.4]} 7. Nc3 {[%clk 0:03:00.4]} 7... g6 {[%clk 0:02:39.3]} 8. Nf3 {[%clk
0:02:51.8]} 8... Bg7 {[%clk 0:02:34.7]} 9. Qxb6 {[%clk 0:02:44.7]} 9... axb6
{[%clk 0:02:34.8]} 10. Bc4 {[%clk 0:02:45]} 10... Na6 {[%clk 0:02:29.9]} 11. d4
{[%clk 0:02:29]} 11... O-O {[%clk 0:02:21.4]} 12. O-O {[%clk 0:02:27.9]} 12...
Rac8 {[%clk 0:02:15.8]} 13. Bb3 {[%clk 0:02:24.5]} 13... Bg4 {[%clk 0:02:09.2]}
14. Ne5 {[%clk 0:02:22.8]} 14... Bf5 {[%clk 0:02:01.9]} 15. Bf4 {[%clk
0:01:42.3]} 15... Rfd8 {[%clk 0:01:54.9]} 16. a3 {[%clk 0:01:41.1]} 16... Nc7
{[%clk 0:01:47.4]} 17. d6 {[%clk 0:01:37.2]} 17... Ne6 {[%clk 0:01:30.3]} 18.
dxe7 {[%clk 0:01:35.2]} 18... Re8 {[%clk 0:01:04.6]} 19. Be3 {[%clk 0:01:33.5]}
19... Rxe7 {[%clk 0:01:00.7]} 20. h3 {[%clk 0:01:32.1]} 20... Rd8 {[%clk
0:00:45.3]} 21. Rad1 {[%clk 0:01:25]} 21... Ne4 {[%clk 0:00:40.1]} 22. Nd5
{[%clk 0:01:17.7]} 22... Ree8 {[%clk 0:00:40.1]} 23. g4 {[%clk 0:01:17]} 23...
Bxe5 {[%clk 0:00:16.8]} 24. dxe5 {[%clk 0:01:12.7]} 24... N6c5 {[%clk
0:00:17.1]} 25. gxf5 {[%clk 0:00:44.3]} 25... Nxb3 {[%clk 0:00:16.1]} 26. Bxb6
{[%clk 0:00:44.1]} 26... Rc8 {[%clk 0:00:09.2]} 27. Rfe1 {[%clk 0:00:41.8]}
27... Rxe5 {[%clk 0:00:07.1]} 28. Rxe4 {[%clk 0:00:40.7]} 28... Rxe4 {[%clk
0:00:06.9]} 29. Nf6+ {[%clk 0:00:40.6]} 29... Kg7 {[%clk 0:00:07.1]} 30. Nxe4
{[%clk 0:00:41.5]} 30... gxf5 {[%clk 0:00:07.3]} 31. Nc3 {[%clk 0:00:37.1]}
31... Rc6 {[%clk 0:00:05.8]} 32. Be3 {[%clk 0:00:32.9]} 32... Kg6 {[%clk
0:00:02.1]} 33. Rd5 {[%clk 0:00:32.4]} 33... Re6 {[%clk 0:00:01.4]} 34. Rb5
{[%clk 0:00:31.3]} 1-0

[Event "*** Titled Tuesday Blitz"]
[Site "Chess.com"]
[Date "2020.05.05"]
[Round "3"]
[White "jlucasvf"]
[Black "r31415"]
[Result "0-1"]
[WhiteElo "2675"]
[BlackElo "2401"]
[TimeControl "180+1"]
[EndTime "10:29:14 PDT"]
[Termination "r31415 won by resignation"]

1. e4 {[%clk 0:03:00.9]} 1... d6 {[%clk 0:03:00.2]} 2. d4 {[%clk 0:03:00.2]}
2... Nf6 {[%clk 0:03:00.8]} 3. Nc3 {[%clk 0:02:59.1]} 3... g6 {[%clk 0:03:01.4]}
4. Nf3 {[%clk 0:02:54]} 4... Bg7 {[%clk 0:03:01.6]} 5. Be2 {[%clk 0:02:54.2]}
5... O-O {[%clk 0:03:02]} 6. O-O {[%clk 0:02:54.5]} 6... c6 {[%clk 0:03:02.7]}
7. a4 {[%clk 0:02:53.8]} 7... Qc7 {[%clk 0:03:03.3]} 8. h3 {[%clk 0:02:51.8]}
8... e5 {[%clk 0:03:02.9]} 9. Re1 {[%clk 0:02:49.9]} 9... exd4 {[%clk 0:02:54]}
10. Nxd4 {[%clk 0:02:45.3]} 10... Re8 {[%clk 0:02:54]} 11. Bf1 {[%clk
0:02:45.3]} 11... Nbd7 {[%clk 0:02:54]} 12. Bf4 {[%clk 0:02:45]} 12... Nc5
{[%clk 0:02:50.8]} 13. Qf3 {[%clk 0:02:23.6]} 13... Ne6 {[%clk 0:02:20.2]} 14.
Nxe6 {[%clk 0:02:22.6]} 14... Bxe6 {[%clk 0:02:21.1]} 15. Rad1 {[%clk 0:02:23]}
15... Rad8 {[%clk 0:02:19.8]} 16. Rxd6 {[%clk 0:01:44.1]} 16... Rxd6 {[%clk
0:02:17.9]} 17. e5 {[%clk 0:01:44.5]} 17... Rd4 {[%clk 0:02:06.8]} 18. Qe3
{[%clk 0:01:14.6]} 18... Rxf4 {[%clk 0:01:39.4]} 19. Qxf4 {[%clk 0:01:15.5]}
19... Nd5 {[%clk 0:01:39.4]} 20. Nxd5 {[%clk 0:01:15.2]} 20... Bxd5 {[%clk
0:01:39.6]} 21. c4 {[%clk 0:01:12.9]} 21... Bxe5 {[%clk 0:01:31.5]} 22. Qd2
{[%clk 0:01:12.7]} 22... Be6 {[%clk 0:01:08.5]} 23. b3 {[%clk 0:01:12.7]} 23...
Bf5 {[%clk 0:00:55.7]} 24. Kh1 {[%clk 0:01:07.8]} 24... Rd8 {[%clk 0:00:40.6]}
25. Qe3 {[%clk 0:01:07.3]} 25... Bd4 {[%clk 0:00:33.3]} 26. Qf3 {[%clk
0:01:07.5]} 26... Qd7 {[%clk 0:00:19.6]} 27. Rd1 {[%clk 0:01:06.5]} 27... Qe7
{[%clk 0:00:15.3]} 28. Qf4 {[%clk 0:01:04.6]} 28... Bf6 {[%clk 0:00:11.8]} 29.
Rxd8+ {[%clk 0:00:49.7]} 29... Qxd8 {[%clk 0:00:11.6]} 30. g4 {[%clk 0:00:50.6]}
30... Be6 {[%clk 0:00:10.4]} 31. Qe3 {[%clk 0:00:49.2]} 31... Be7 {[%clk
0:00:09.5]} 32. Qxa7 {[%clk 0:00:47.6]} 32... Qc7 {[%clk 0:00:06.8]} 33. Qd4
{[%clk 0:00:45.5]} 33... Bd6 {[%clk 0:00:06.4]} 34. c5 {[%clk 0:00:39.2]} 34...
Be5 {[%clk 0:00:06.3]} 35. Qe3 {[%clk 0:00:39.5]} 35... Bf4 {[%clk 0:00:05.9]}
36. Qf3 {[%clk 0:00:24.8]} 36... Bd5 {[%clk 0:00:06.8]} 0-1

[Event "*** Titled Tuesday Blitz"]
[Site "Chess.com"]
[Date "2020.05.05"]
[Round "3"]
[White "OhanyanEminChess"]
[Black "VincentKeymer"]
[Result "0-1"]
[WhiteElo "2494"]
[BlackElo "2721"]
[TimeControl "180+1"]
[EndTime "10:29:15 PDT"]
[Termination "VincentKeymer won on time"]

1. e4 {[%clk 0:03:00.9]} 1... c5 {[%clk 0:03:00.2]} 2. Nf3 {[%clk 0:03:00]} 2...
d6 {[%clk 0:03:00.6]} 3. d4 {[%clk 0:02:58.4]} 3... cxd4 {[%clk 0:03:01.5]} 4.
Nxd4 {[%clk 0:02:58.7]} 4... Nf6 {[%clk 0:03:02]} 5. Nc3 {[%clk 0:02:58.5]} 5...
a6 {[%clk 0:03:02.5]} 6. Bc4 {[%clk 0:02:57.1]} 6... e6 {[%clk 0:02:57.7]} 7.
Bb3 {[%clk 0:02:56.8]} 7... Nbd7 {[%clk 0:02:57.6]} 8. f4 {[%clk 0:02:56.8]}
8... Nc5 {[%clk 0:02:57.7]} 9. f5 {[%clk 0:02:57.4]} 9... Nxb3 {[%clk
0:02:53.1]} 10. axb3 {[%clk 0:02:56.5]} 10... e5 {[%clk 0:02:50]} 11. Nde2
{[%clk 0:02:56.1]} 11... d5 {[%clk 0:02:47.6]} 12. Bg5 {[%clk 0:02:38.1]} 12...
Bb4 {[%clk 0:02:32.8]} 13. O-O {[%clk 0:02:25]} 13... Bxc3 {[%clk 0:02:07.7]}
14. Nxc3 {[%clk 0:02:24.8]} 14... d4 {[%clk 0:02:05.2]} 15. Nd5 {[%clk
0:02:24.9]} 15... Bd7 {[%clk 0:02:00.2]} 16. c3 {[%clk 0:01:39.7]} 16... Bc6
{[%clk 0:01:59.3]} 17. cxd4 {[%clk 0:01:33.9]} 17... Bxd5 {[%clk 0:01:57.5]} 18.
exd5 {[%clk 0:01:22.8]} 18... Qxd5 {[%clk 0:01:56.2]} 19. dxe5 {[%clk 0:01:22]}
19... Qc5+ {[%clk 0:01:56.1]} 20. Kh1 {[%clk 0:01:21.2]} 20... Ne4 {[%clk
0:01:55.1]} 21. Qg4 {[%clk 0:00:35.4]} 21... Nf2+ {[%clk 0:01:38.8]} 22. Rxf2
{[%clk 0:00:35.7]} 22... Qxf2 {[%clk 0:01:39.4]} 23. f6 {[%clk 0:00:17.8]} 23...
g6 {[%clk 0:01:22.8]} 24. e6 {[%clk 0:00:15.4]} 24... O-O {[%clk 0:01:15.9]} 25.
e7 {[%clk 0:00:13.6]} 25... Rfe8 {[%clk 0:01:13.1]} 26. Qh3 {[%clk 0:00:13.2]}
26... h5 {[%clk 0:01:09.6]} 27. Rd1 {[%clk 0:00:06.1]} 27... Rac8 {[%clk
0:01:06.4]} 28. Qd3 {[%clk 0:00:05.9]} 28... Qxb2 {[%clk 0:01:00.7]} 29. Qe3
{[%clk 0:00:02.7]} 29... Rc2 {[%clk 0:00:44.7]} 30. Rg1 {[%clk 0:00:01.7]} 30...
Rc3 {[%clk 0:00:40.8]} 31. Qf4 {[%clk 0:00:02.1]} 31... Rxb3 {[%clk 0:00:32.1]}
32. Bh6 {[%clk 0:00:02.1]} 32... Rb4 {[%clk 0:00:29.2]} 33. Qe3 {[%clk
0:00:02.2]} 33... Qxf6 {[%clk 0:00:27]} 0-1

[Event "*** Titled Tuesday Blitz"]
[Site "Chess.com"]
[Date "2020.05.05"]
[Round "3"]
[White "Macron20hTF1"]
[Black "Munkhzul_Turmunkh"]
[Result "1-0"]
[WhiteElo "2360"]
[BlackElo "2527"]
[TimeControl "180+1"]
[EndTime "10:29:15 PDT"]
[Termination "Macron20hTF1 won on time"]

1. f4 {[%clk 0:03:00.9]} 1... d5 {[%clk 0:02:59.2]} 2. Nf3 {[%clk 0:03:00.8]}
2... Nf6 {[%clk 0:02:58.4]} 3. g3 {[%clk 0:03:00.9]} 3... g6 {[%clk 0:02:58.1]}
4. Bg2 {[%clk 0:03:01.6]} 4... Bg7 {[%clk 0:02:57.9]} 5. O-O {[%clk 0:03:02.5]}
5... O-O {[%clk 0:02:57.7]} 6. d3 {[%clk 0:03:03.1]} 6... c5 {[%clk 0:02:54]} 7.
c3 {[%clk 0:03:03.2]} 7... Nc6 {[%clk 0:02:53.9]} 8. Na3 {[%clk 0:03:03]} 8...
Re8 {[%clk 0:02:52.3]} 9. Nh4 {[%clk 0:03:02.5]} 9... e5 {[%clk 0:02:49.6]} 10.
f5 {[%clk 0:03:03.1]} 10... a6 {[%clk 0:02:33.1]} 11. e4 {[%clk 0:03:02.2]}
11... dxe4 {[%clk 0:01:56.3]} 12. dxe4 {[%clk 0:03:03.1]} 12... b5 {[%clk
0:01:50.2]} 13. Bg5 {[%clk 0:02:55.4]} 13... Qe7 {[%clk 0:01:40]} 14. Qf3 {[%clk
0:02:45]} 14... Rf8 {[%clk 0:01:35.1]} 15. Nc2 {[%clk 0:02:42.2]} 15... Bd7
{[%clk 0:01:09]} 16. Ne3 {[%clk 0:02:41.4]} 16... h6 {[%clk 0:01:04.8]} 17. Nd5
{[%clk 0:02:39]} 17... Qd6 {[%clk 0:01:04.4]} 18. Nxf6+ {[%clk 0:02:25.2]} 18...
Bxf6 {[%clk 0:01:05.3]} 19. Rad1 {[%clk 0:02:25.3]} 19... Nd4 {[%clk 0:01:01.9]}
20. cxd4 {[%clk 0:02:23.6]} 20... Bxg5 {[%clk 0:00:54.4]} 21. dxe5 {[%clk
0:02:19.5]} 21... Qe7 {[%clk 0:00:44]} 22. e6 {[%clk 0:02:06.4]} 22... Bc6
{[%clk 0:00:30.8]} 23. Qg4 {[%clk 0:02:03.1]} 23... Bxh4 {[%clk 0:00:29.4]} 24.
gxh4 {[%clk 0:01:49.6]} 24... Be8 {[%clk 0:00:15.3]} 25. e5 {[%clk 0:01:30.8]}
25... Rc8 {[%clk 0:00:13.1]} 26. h5 {[%clk 0:01:01]} 26... g5 {[%clk 0:00:12.1]}
27. h4 {[%clk 0:01:01.4]} 27... fxe6 {[%clk 0:00:10.9]} 28. f6 {[%clk
0:01:00.1]} 28... Qf7 {[%clk 0:00:07.7]} 29. hxg5 {[%clk 0:00:57]} 29... Qxh5
{[%clk 0:00:07.8]} 30. Qxe6+ {[%clk 0:00:39.9]} 30... Bf7 {[%clk 0:00:07.6]} 31.
Qh3 {[%clk 0:00:32.7]} 31... Qxg5 {[%clk 0:00:06.8]} 32. Rd3 {[%clk 0:00:30.9]}
32... Kh7 {[%clk 0:00:05.6]} 33. Rg3 {[%clk 0:00:29.9]} 1-0

[Event "*** Titled Tuesday Blitz"]
[Site "Chess.com"]
[Date "2020.05.05"]
[Round "3"]
[White "Taron_Shagbazyan"]
[Black "Azeryahu"]
[Result "0-1"]
[WhiteElo "2636"]
[BlackElo "2897"]
[TimeControl "180+1"]
[EndTime "10:29:16 PDT"]
[Termination "Azeryahu won by resignation"]

1. d4 {[%clk 0:02:59]} 1... d6 {[%clk 0:03:00]} 2. g3 {[%clk 0:02:54.8]} 2...
Nf6 {[%clk 0:02:59.7]} 3. Bg2 {[%clk 0:02:55.1]} 3... c6 {[%clk 0:03:00.6]} 4.
c4 {[%clk 0:02:50.5]} 4... Bf5 {[%clk 0:03:00.5]} 5. Nc3 {[%clk 0:02:48.7]} 5...
h6 {[%clk 0:03:00.4]} 6. e4 {[%clk 0:02:44.8]} 6... Bh7 {[%clk 0:03:00.2]} 7.
Nge2 {[%clk 0:02:45]} 7... Nbd7 {[%clk 0:03:00.5]} 8. O-O {[%clk 0:02:35.1]}
8... e5 {[%clk 0:03:01.1]} 9. b3 {[%clk 0:02:30.8]} 9... Be7 {[%clk 0:03:00.1]}
10. h3 {[%clk 0:02:25.4]} 10... O-O {[%clk 0:02:59.9]} 11. f4 {[%clk 0:02:16.6]}
11... Re8 {[%clk 0:02:57.5]} 12. Kh2 {[%clk 0:02:13.5]} 12... Bf8 {[%clk
0:02:53.9]} 13. fxe5 {[%clk 0:02:10.8]} 13... dxe5 {[%clk 0:02:53.2]} 14. d5
{[%clk 0:02:11.3]} 14... Nc5 {[%clk 0:02:52.4]} 15. Qc2 {[%clk 0:01:48.8]} 15...
cxd5 {[%clk 0:02:52.8]} 16. cxd5 {[%clk 0:01:36.1]} 16... Nxd5 {[%clk
0:02:53.2]} 17. Nxd5 {[%clk 0:01:20.6]} 17... Qxd5 {[%clk 0:02:53.5]} 18. Nc3
{[%clk 0:01:20.7]} 18... Qc6 {[%clk 0:02:25.7]} 19. Bb2 {[%clk 0:01:10.4]} 19...
Rad8 {[%clk 0:02:19.5]} 20. Rad1 {[%clk 0:00:47.7]} 20... Ne6 {[%clk 0:02:18.2]}
21. Qf2 {[%clk 0:00:45.3]} 21... f6 {[%clk 0:02:15.4]} 22. Nd5 {[%clk
0:00:41.4]} 22... Bc5 {[%clk 0:02:12.9]} 23. Qe2 {[%clk 0:00:30.9]} 23... Bd4
{[%clk 0:02:02.6]} 24. Ba3 {[%clk 0:00:25.2]} 24... Kh8 {[%clk 0:01:55.5]} 25.
Qg4 {[%clk 0:00:17.3]} 25... Qd7 {[%clk 0:01:54.4]} 26. Nxf6 {[%clk 0:00:11.9]}
26... gxf6 {[%clk 0:01:54]} 27. Rxf6 {[%clk 0:00:12.8]} 27... Ng5 {[%clk
0:01:29.3]} 28. Qh4 {[%clk 0:00:11.7]} 28... Qg7 {[%clk 0:01:06.8]} 29. Rxh6
{[%clk 0:00:10.4]} 29... Be3 {[%clk 0:00:51.5]} 30. Rxd8 {[%clk 0:00:07.4]}
30... Rxd8 {[%clk 0:00:52.4]} 31. Rh5 {[%clk 0:00:07.9]} 31... Rd2 {[%clk
0:00:47.3]} 32. Qg4 {[%clk 0:00:08.3]} 32... Qf6 {[%clk 0:00:33.4]} 33. Qc8+
{[%clk 0:00:06.1]} 33... Kg7 {[%clk 0:00:30.7]} 34. Qc7+ {[%clk 0:00:04.5]}
34... Kg6 {[%clk 0:00:30.9]} 35. Rxh7 {[%clk 0:00:04.7]} 35... Rxg2+ {[%clk
0:00:27.8]} 36. Kxg2 {[%clk 0:00:04.8]} 36... Qf2+ {[%clk 0:00:28.3]} 0-1

[Event "*** Titled Tuesday Blitz"]
[Site "Chess.com"]
[Date "2020.05.05"]
[Round "3"]
[White "AwareIdea"]
[Black "pouya21"]
[Result "0-1"]
[WhiteElo "2596"]
[BlackElo "2798"]
[TimeControl "180+1"]
[EndTime "10:29:17 PDT"]
[Termination "pouya21 won by resignation"]

1. d4 {[%clk 0:03:00.9]} 1... f5 {[%clk 0:02:59]} 2. Nc3 {[%clk 0:02:56.2]} 2...
Nf6 {[%clk 0:02:58.5]} 3. Bg5 {[%clk 0:02:55.8]} 3... d5 {[%clk 0:02:58.9]} 4.
Bxf6 {[%clk 0:02:55.7]} 4... exf6 {[%clk 0:02:59.8]} 5. Nf3 {[%clk 0:02:55.4]}
5... c6 {[%clk 0:02:52.4]} 6. a3 {[%clk 0:02:51.8]} 6... Be6 {[%clk 0:02:52.6]}
7. e3 {[%clk 0:02:51.1]} 7... Bd6 {[%clk 0:02:52.9]} 8. Bd3 {[%clk 0:02:51.1]}
8... Qe7 {[%clk 0:02:52.4]} 9. Nh4 {[%clk 0:02:50.2]} 9... g6 {[%clk 0:02:52]}
10. g3 {[%clk 0:02:50.1]} 10... Nd7 {[%clk 0:02:47.2]} 11. Qf3 {[%clk 0:02:48]}
11... Nb6 {[%clk 0:02:17.6]} 12. O-O {[%clk 0:02:37.7]} 12... Bc7 {[%clk
0:02:10.4]} 13. Ng2 {[%clk 0:02:34]} 13... Nc8 {[%clk 0:02:08.5]} 14. Nf4 {[%clk
0:02:30]} 14... Bf7 {[%clk 0:02:07.7]} 15. Rfe1 {[%clk 0:02:23.9]} 15... Nd6
{[%clk 0:02:07.7]} 16. Qe2 {[%clk 0:02:18]} 16... h5 {[%clk 0:02:07]} 17. Ng2
{[%clk 0:02:15.1]} 17... h4 {[%clk 0:02:04.6]} 18. Nxh4 {[%clk 0:02:10.6]} 18...
Ne4 {[%clk 0:02:02.6]} 19. Ng2 {[%clk 0:02:05]} 19... Be6 {[%clk 0:01:51.3]} 20.
f3 {[%clk 0:02:01]} 20... Rxh2 {[%clk 0:01:36.7]} 21. fxe4 {[%clk 0:01:54.9]}
21... Bxg3 {[%clk 0:01:33.8]} 22. Qf3 {[%clk 0:01:42.9]} 22... Rh3 {[%clk
0:01:25.7]} 23. Kf1 {[%clk 0:01:13.9]} 23... fxe4 {[%clk 0:01:18.1]} 24. Nxe4
{[%clk 0:00:43.9]} 24... dxe4 {[%clk 0:01:15.4]} 25. Qxe4 {[%clk 0:00:39.3]}
25... Bxe1 {[%clk 0:01:11.6]} 26. Rxe1 {[%clk 0:00:40.2]} 26... O-O-O {[%clk
0:01:03.7]} 27. Nf4 {[%clk 0:00:29.6]} 27... Re8 {[%clk 0:00:53.7]} 28. Qxg6
{[%clk 0:00:11.3]} 28... Rh1+ {[%clk 0:00:44.1]} 29. Kf2 {[%clk 0:00:10.5]}
29... Rxe1 {[%clk 0:00:43.5]} 30. Kxe1 {[%clk 0:00:11.4]} 30... Bd7 {[%clk
0:00:43.7]} 31. e4 {[%clk 0:00:10.6]} 31... Qd6 {[%clk 0:00:42]} 32. e5 {[%clk
0:00:07.9]} 32... Qxd4 {[%clk 0:00:41.2]} 33. e6 {[%clk 0:00:05]} 33... Qxf4
{[%clk 0:00:39.1]} 34. Kd1 {[%clk 0:00:02.9]} 34... Rxe6 {[%clk 0:00:37]} 0-1